fUST/lending_fUST_20240828
["ID","MTS","AMOUNT","RATE_DAILY","PERIOD"]
[336426801,1724821855767,-3000.0,0.0001613,2]
[336426803,1724821855778,-3000.0,0.0001614,2]
[336426805,1724821855788,-3000.0,0.0001615,2]
[336426808,1724821855799,-267.438113,0.0001615,2]
[336426809,1724821855809,-3000.0,0.0001616,2]
[336426811,1724821855819,-1271.99,0.00016164,2]
[336426814,1724821855831,-4358.7,0.00016164,2]
[336426815,1724821855840,-1793.72,0.00016164,2]
[336426818,1724821855850,-1671.46,0.00016164,2]
[336426819,1724821855860,-865.28,0.00016164,2]
[336426822,1724821855871,-652.59,0.00016164,2]
[336426824,1724821855881,-715.09,0.00016164,2]
[336426826,1724821855892,-583.01,0.00016164,2]
[336426828,1724821855903,-2293.63,0.00016164,2]
[336426830,1724821855914,-14707.33,0.00016164,2]
[336426832,1724821855924,-3196.24,0.00016164,2]
[336426834,1724821855934,-5630.95,0.00016164,2]
[336426836,1724821855944,-1784.07,0.00016164,2]
[336426838,1724821855959,-1656.51,0.00016164,2]
[336426840,1724821855970,-500.0,0.00016164,2]
[336426842,1724821855979,-1071.34,0.00016164,2]
[336426845,1724821855990,-658.37,0.00016164,2]
[336426847,1724821855999,-500.0,0.00016164,2]
[336426849,1724821856009,-2101.39,0.00016164,2]
[336426851,1724821856019,-3000.0,0.0001617,2]
[336426853,1724821856031,-3000.0,0.0001618,2]
[336426855,1724821856041,-3000.0,0.0001619,2]
[336426857,1724821856050,-3000.0,0.000162,2]
[336426859,1724821856060,-3000.0,0.0001621,2]
[336426861,1724821856071,-3000.0,0.0001622,2]
[336426863,1724821856081,-3000.0,0.0001623,2]
[336426865,1724821856091,-3000.0,0.0001624,2]
[336426867,1724821856101,-3000.0,0.0001625,2]
[336426869,1724821856111,-3000.0,0.0001626,2]
[336426871,1724821856121,-3000.0,0.0001627,2]
[336426873,1724821856130,-160.592738,0.00016274,2]
[336426875,1724821856141,-3000.0,0.0001628,2]
[336426877,1724821856150,-3473.353169,0.0001629,2]
[336426879,1724821856160,-1271.99,0.00016438,2]
[336426881,1724821856170,-4358.7,0.00016438,2]
[336426883,1724821856180,-1793.72,0.00016438,2]
[336426886,1724821856190,-1671.46,0.00016438,2]
[336426888,1724821856202,-865.28,0.00016438,2]
[336426890,1724821856213,-652.59,0.00016438,2]
[336426892,1724821856223,-715.09,0.00016438,2]
[336426894,1724821856233,-583.01,0.00016438,2]
[336426896,1724821856244,-2293.63,0.00016438,2]
[336426898,1724821856254,-14707.33,0.00016438,2]
[336426900,1724821856265,-3196.24,0.00016438,2]
[336426902,1724821856275,-5630.95,0.00016438,2]
[336426903,1724821856286,-1784.07,0.00016438,2]
[336426904,1724821856296,-1656.51,0.00016438,2]
[336426905,1724821856306,-500.0,0.00016438,2]
[336426906,1724821856316,-1071.34,0.00016438,2]
[336426907,1724821856325,-658.37,0.00016438,2]
[336426908,1724821856334,-500.0,0.00016438,2]
[336426909,1724821856344,-2101.39,0.00016438,2]
[336426910,1724821856354,-160.592738,0.0001647,2]
[336426911,1724821856364,-161.58729,0.0001647,2]
[336426912,1724821856374,-161.587289,0.0001647,2]
[336426913,1724821856383,-159.929704,0.0001647,2]
[336426915,1724821856392,-180.826148,0.0001647,2]
[336426917,1724821856401,-1271.99,0.00016712,2]
[336426919,1724821856411,-4358.7,0.00016712,2]
[336426921,1724821856421,-1793.72,0.00016712,2]
[336426923,1724821856431,-1671.46,0.00016712,2]
[336426925,1724821856440,-865.28,0.00016712,2]
[336426927,1724821856450,-652.59,0.00016712,2]
[336426929,1724821856460,-715.09,0.00016712,2]
[336426931,1724821856470,-583.01,0.00016712,2]
[336426933,1724821856480,-2293.63,0.00016712,2]
[336426935,1724821856491,-14707.33,0.00016712,2]
[336426937,1724821856501,-3196.24,0.00016712,2]
[336426939,1724821856511,-5630.95,0.00016712,2]
[336426942,1724821856522,-1784.07,0.00016712,2]
[336426944,1724821856531,-1656.51,0.00016712,2]
[336426946,1724821856540,-500.0,0.00016712,2]
[336426948,1724821856550,-1071.34,0.00016712,2]
[336426950,1724821856559,-658.37,0.00016712,2]
[336426952,1724821856568,-500.0,0.00016712,2]
[336426954,1724821856579,-2101.39,0.00016712,2]
[336426956,1724821856588,-1271.99,0.00016986,2]
[336426958,1724821856599,-4358.7,0.00016986,2]
[336426960,1724821856609,-1793.72,0.00016986,2]
[336426962,1724821856618,-1671.46,0.00016986,2]
[336426964,1724821856628,-865.28,0.00016986,2]
[336426966,1724821856637,-652.59,0.00016986,2]
[336426968,1724821856649,-715.09,0.00016986,2]
[336426970,1724821856659,-479.219014,0.00016986,2]
[336426972,1724821856668,-479.219014,0.00016986,2]
[336426974,1724821856678,-583.01,0.00016986,2]
[336426976,1724821856687,-2293.63,0.00016986,2]
[336426978,1724821856697,-14707.33,0.00016986,2]
[336426980,1724821856709,-3196.24,0.00016986,2]
[336426982,1724821856719,-3909.293576,0.00016986,2]
[336426985,1724821856729,-5630.95,0.00016986,2]
[336426987,1724821856739,-3909.293576,0.00016986,2]
[336426989,1724821856748,-151.0,0.00016986,2]
[336426991,1724821856758,-1784.07,0.00016986,2]
[336426993,1724821856767,-203.390077,0.00016986,2]
[336426995,1724821856776,-1656.51,0.00016986,2]
[336426997,1724821856786,-625.74,0.00016986,2]
[336426998,1724821856795,-1071.34,0.00016986,2]
[336427001,1724821856805,-658.37,0.00016986,2]
[336427003,1724821856814,-565.23,0.00016986,2]
[336427005,1724821856823,-2101.39,0.00016986,2]
[336427006,1724821856833,-151.0,0.0001726,2]
[336427009,1724821856842,-196.222638,0.0001726,2]
[336427010,1724821856853,-196.222638,0.0001726,2]
[336427012,1724821856862,-151.0,0.0001726,2]
[336427014,1724821856871,-151.0,0.0001726,2]
[336427017,1724821856881,-1272.14058421,0.0001726,2]
[336427019,1724821856891,-4358.72889158,0.0001726,2]
[336427021,1724821856900,-151.0,0.0001726,2]
[336427023,1724821856910,-966.352648,0.0001726,2]
[336427025,1724821856919,-966.352648,0.0001726,2]
[336427027,1724821856929,-1793.8498221,0.0001726,2]
[336427029,1724821856938,-1671.59,0.0001726,2]
[336427031,1724821856950,-477.05673,0.0001726,2]
[336427033,1724821856960,-865.29060562,0.0001726,2]
[336427035,1724821856971,-477.05673,0.0001726,2]
[336427037,1724821856981,-652.62936895,0.0001726,2]
[336427039,1724821856992,-715.14,0.0001726,2]
[336427055,1724821857126,-583.01,0.0001726,2]
[336427057,1724821857137,-2293.67601612,0.0001726,2]
[336427059,1724821857147,-14707.40818943,0.0001726,2]
[336427061,1724821857157,-3196.26713312,0.0001726,2]
[336427063,1724821857168,-5631.05358874,0.0001726,2]
[336427065,1724821857180,-1784.28534821,0.0001726,2]
[336427067,1724821857190,-1656.54,0.0001726,2]
[336427069,1724821857200,-184.985166,0.0001726,2]
[336427071,1724821857209,-184.985166,0.0001726,2]
[336427073,1724821857219,-1071.44766093,0.0001726,2]
[336427075,1724821857228,-658.45,0.0001726,2]
[336427077,1724821857238,-2101.59418965,0.0001726,2]
[336427080,1724821857249,-153.0,0.00017358,2]
[336427081,1724821857259,-153.0,0.00017358,2]
[336427084,1724821857269,-302.0,0.000175,2]
[336427086,1724821857279,-1065.0,0.00017646,2]
[336427088,1724821857289,-150.0,0.0001787,2]
[336427090,1724821857299,-522.0,0.0001787,2]
[336427092,1724821857310,-409.4159754,0.00018148,2]
[336427094,1724821857319,-5722.67256098,0.00018174,2]
[336427096,1724821857330,-150.0,0.0001819,2]
[336427098,1724821857340,-150.0,0.0001819,2]
[336427100,1724821857350,-150.0,0.00018316,2]
[336427102,1724821857361,-3200.0,0.00018624,2]
[336427104,1724821857373,-3200.0,0.00018636,2]
[336427106,1724821857385,-1900.0,0.00018706,2]
[336427108,1724821857395,-3200.0,0.00018724,2]
[336427110,1724821857405,-3200.0,0.00018796,2]
[336427112,1724821857416,-2300.0,0.00018843,2]
[336427114,1724821857426,-500.0,0.0001885,2]
[336427116,1724821857437,-1000.0,0.00018883,2]
[336427118,1724821857447,-409.3878908,0.0001897,2]
[336427120,1724821857459,-409.3878908,0.0001897,2]
[336427123,1724821857470,-409.3878908,0.0001897,2]
[336427125,1724821857483,-409.3878908,0.0001897,2]
[336427127,1724821857501,-409.3878908,0.0001897,2]
[336427129,1724821857511,-409.4159754,0.0001897,2]
[336427131,1724821857521,-150.0,0.00019,2]
[336427133,1724821857534,-415.5434711,0.00019002,2]
[336427135,1724821857545,-500.0,0.00019019,2]
[336427137,1724821857555,-465.05386797,0.00019029,2]
[336427139,1724821857566,-1000.0,0.00019085,2]
[336427141,1724821857581,-500.0,0.00019129,2]
[336427143,1724821857591,-1900.0,0.00019168,2]
[336427146,1724821857603,-164.066521,0.00019178,2]
[336427148,1724821857614,-251.0,0.00019178,2]
[336427150,1724821857625,-285.743759,0.00019178,2]
[336427152,1724821857637,-302.28255131,0.0001918,2]
[336427154,1724821857648,-302.28255131,0.0001918,2]
[336427156,1724821857660,-302.28255131,0.0001918,2]
[336427158,1724821857671,-302.28255131,0.0001918,2]
[336427160,1724821857683,-302.28255131,0.0001918,2]
[336427163,1724821857693,-302.28255131,0.0001918,2]
[336427165,1724821857704,-302.28255131,0.0001918,2]
[336427167,1724821857714,-302.28255131,0.0001918,2]
[336427169,1724821857725,-302.28255131,0.0001918,2]
[336427171,1724821857735,-302.28255131,0.0001918,2]
[336427173,1724821857745,-302.28255131,0.0001918,2]
[336427175,1724821857758,-302.28255131,0.0001918,2]
[336427177,1724821857768,-302.28255131,0.0001918,2]
[336427179,1724821857778,-302.28255131,0.0001918,2]
[336427181,1724821857788,-302.28255131,0.0001918,2]
[336427183,1724821857798,-302.28255131,0.0001918,2]
[336427185,1724821857809,-302.28255131,0.0001918,2]
[336427187,1724821857819,-302.28255131,0.0001918,2]
[336427189,1724821857828,-302.28255131,0.0001918,2]
[336427191,1724821857839,-302.78,0.0001918,2]
[336427193,1724821857848,-191.73746141,0.0001918,2]
[336427195,1724821857858,-191.73746141,0.0001918,2]
[336427197,1724821857868,-191.73746141,0.0001918,2]
[336427199,1724821857879,-191.73746141,0.0001918,2]
[336427201,1724821857888,-191.73746141,0.0001918,2]
[336427203,1724821857898,-191.73746141,0.0001918,2]
[336427206,1724821857908,-191.73746141,0.0001918,2]
[336427208,1724821857918,-191.73746141,0.0001918,2]
[336427210,1724821857928,-191.73746141,0.0001918,2]
[336427212,1724821857938,-191.73746141,0.0001918,2]
[336427214,1724821857948,-191.73746141,0.0001918,2]
[336427216,1724821857959,-191.73746141,0.0001918,2]
[336427218,1724821857969,-191.73746141,0.0001918,2]
[336427220,1724821857979,-191.73746141,0.0001918,2]
[336427222,1724821857989,-191.73746141,0.0001918,2]
[336427224,1724821857999,-191.73746141,0.0001918,2]
[336427226,1724821858009,-191.73746141,0.0001918,2]
[336427228,1724821858019,-191.73746141,0.0001918,2]
[336427230,1724821858029,-191.73746141,0.0001918,2]
[336427232,1724821858038,-192.23,0.0001918,2]
[336427234,1724821858048,-600.0,0.0001919,2]
[336427236,1724821858057,-3200.0,0.00019194,2]
[336427239,1724821858068,-2300.0,0.00019195,2]
[336427241,1724821858079,-1000.0,0.00019239,2]
[336427243,1724821858088,-3200.0,0.00019257,2]
[336427245,1724821858099,-151.0,0.00019323,2]
[336427247,1724821858109,-151.0,0.00019323,2]
[336427249,1724821858118,-500.0,0.00019376,2]
[336427251,1724821858128,-1145.08603557,0.0001939,2]
[336427253,1724821858138,-693.2721,0.00019409,2]
[336427255,1724821858148,-1000.0,0.00019428,2]
[336427257,1724821858157,-151.0,0.00019445,2]
[336427259,1724821858168,-151.0,0.00019445,2]
[336427261,1724821858177,-20000.0,0.00019462,2]
[336427263,1724821858187,-151.0,0.00019462,2]
[336427266,1724821858197,-151.137193,0.00019462,2]
[336427268,1724821858208,-151.0,0.00019462,2]
[336427270,1724821858218,-151.0,0.00019462,2]
[336427272,1724821858228,-1000.0,0.00019468,2]
[336427274,1724821858238,-500.0,0.00019548,2]
[336427276,1724821858247,-3200.0,0.00019566,2]
[336427278,1724821858257,-500.0,0.00019588,2]
[336427280,1724821858267,-2300.0,0.00019602,2]
[336427282,1724821858276,-1900.0,0.00019605,2]
[336427284,1724821858287,-3200.0,0.00019695,2]
[336427286,1724821858296,-566.258731,0.00019695,2]
[336427288,1724821858306,-566.258731,0.00019695,2]
[336427289,1724821858316,-1000.0,0.00019749,2]
[336427290,1724821858326,-317.9429019,0.00019751,2]
[336427291,1724821858336,-2300.0,0.0001977,2]
[336427292,1724821858345,-151.0,0.00019823,2]
[336427293,1724821858355,-151.0,0.00019823,2]
[336427294,1724821858364,-679.916543,0.00019823,2]
[336427295,1724821858373,-151.0,0.00019823,2]
[336427296,1724821858383,-429.717315,0.00019823,2]
[336427297,1724821858393,-228.006731,0.00019823,2]
[336427298,1724821858405,-429.717315,0.00019823,2]
[336427300,1724821858421,-228.006731,0.00019823,2]
[336427302,1724821858436,-153.0,0.00019823,2]
[336427304,1724821858450,-153.0,0.00019823,2]
[336427306,1724821858462,-2300.0,0.00019825,2]
[336427309,1724821858476,-1000.0,0.00019838,2]
[336427311,1724821858490,-1000.0,0.00019869,2]
[336427314,1724821858507,-151.0,0.000199,2]
[336427316,1724821858520,-151.0,0.000199,2]
[336427319,1724821858536,-151.0,0.000199,2]
[336427322,1724821858551,-299.902569,0.000199,2]
[336427324,1724821858564,-299.902569,0.000199,2]
[336427326,1724821858577,-151.034685,0.000199,2]
[336427329,1724821858589,-516.079451,0.000199,2]
[336427331,1724821858602,-516.079451,0.000199,2]
[336427333,1724821858616,-151.0,0.000199,2]
[336427336,1724821858629,-367.782899,0.000199,2]
[336427338,1724821858640,-367.782899,0.000199,2]
[336427340,1724821858650,-151.0,0.000199,2]
[336427342,1724821858663,-151.0,0.000199,2]
[336427345,1724821858676,-551.83,0.000199,31]
[336427347,1724821858688,-551.83,0.000199,31]
[336427349,1724821858703,-551.83,0.000199,31]
[336427352,1724821858717,-551.83,0.000199,31]
[336427354,1724821858730,-551.83,0.000199,31]
[336427356,1724821858745,-551.83,0.000199,31]
[336427359,1724821858756,-551.83,0.000199,31]
[336427361,1724821858767,-551.83,0.000199,31]
[336427363,1724821858777,-551.83,0.000199,31]
[336427365,1724821858790,-551.83,0.000199,31]
[336427368,1724821858804,-551.83,0.000199,31]
[336427370,1724821858818,-551.83,0.000199,31]
[336427372,1724821858829,-551.83,0.000199,31]
[336427375,1724821858843,-551.83,0.000199,31]
[336427377,1724821858856,-551.83,0.000199,31]
[336427379,1724821858869,-551.83,0.000199,31]
[336427381,1724821858880,-1900.0,0.00019908,2]
[336427384,1724821858891,-3200.0,0.00019949,2]
[336427386,1724821858902,-3200.0,0.00019956,2]
[336427388,1724821858914,-465.0026934,0.00019981,2]
[336427390,1724821858925,-316.76293448,0.00019989,2]
[336427392,1724821858937,-3120.73250441,0.00019989,2]
[336427395,1724821858958,-5079.47411352,0.00019989,2]
[336427398,1724821858971,-44460.0052816,0.0001999,2]
[336427400,1724821858982,-151.0,0.0001999,2]
[336427402,1724821858994,-500.0,0.0001999,2]
[336427404,1724821859005,-476.942138,0.0001999,2]
[336427407,1724821859017,-476.942138,0.0001999,2]
[336427409,1724821859028,-255.947324,0.0001999,2]
[336427411,1724821859039,-255.947324,0.0001999,2]
[336427413,1724821859051,-151.0,0.0001999,2]
[336427415,1724821859062,-151.0,0.0001999,2]
[336427418,1724821859074,-151.0,0.0001999,2]
[336427420,1724821859087,-496.141938,0.0001999,2]
[336427422,1724821859099,-496.141938,0.0001999,2]
[336427425,1724821859110,-21113.02474008,0.0002,2]
[336427427,1724821859122,-67048.41994348,0.0002,2]
[336427429,1724821859135,-154.71377951,0.0002,2]
[336427431,1724821859148,-13973.03556728,0.0002,15]
[336427434,1724821859160,-100000.0,0.0002,7]
[336427436,1724821859171,-154.75327238,0.0002,2]
[336427438,1724821859183,-174.78202685,0.0002,2]
[336427440,1724821859196,-217.81251427,0.0002,2]
[336427442,1724821859208,-72708.60441275,0.0002,2]
[336427445,1724821859221,-154.74467129,0.0002,2]
[336427447,1724821859232,-20191.38852614,0.0002,2]
[336427449,1724821859243,-166.76576278,0.0002,2]
[336427452,1724821859256,-360.97676095,0.0002,2]
[336427454,1724821859267,-521.01238046,0.0002,2]
[336427456,1724821859279,-154.59033561,0.0002,2]
[336427459,1724821859294,-10063.3258464,0.0002,2]
[336427461,1724821859307,-4295.06647493,0.0002,2]
[336427463,1724821859319,-622.8158766,0.0002,15]
[336427465,1724821859331,-222.37215199,0.0002,2]
[336427468,1724821859342,-159.3640246,0.0002,2]
[336427470,1724821859354,-12900.0,0.0002,2]
[336427472,1724821859367,-182.5,0.0002,2]
[336427475,1724821859380,-200.0,0.0002,7]
[336427477,1724821859393,-500.0,0.0002,2]
[336427479,1724821859405,-506.0,0.0002,2]
[336427482,1724821859418,-506.0,0.0002,2]
[336427484,1724821859432,-53237.28817337,0.0002,2]
[336427487,1724821859443,-151.0,0.0002,2]
[336427489,1724821859461,-151.0,0.0002,2]
[336427491,1724821859474,-151.0,0.0002,2]
[336427494,1724821859488,-151.0,0.0002,2]
[336427496,1724821859503,-151.0,0.0002,2]
[336427498,1724821859515,-151.0,0.0002,2]
[336427500,1724821859526,-151.0,0.0002,2]
[336427503,1724821859536,-151.0,0.0002,2]
[336427505,1724821859546,-151.0,0.0002,2]
[336427507,1724821859557,-151.0,0.0002,2]
[336427509,1724821859567,-299.902569,0.0002,2]
[336427511,1724821859578,-151.0,0.0002,2]
[336427513,1724821859588,-299.902569,0.0002,2]
[336427515,1724821859598,-151.0,0.0002,2]
[336427517,1724821859608,-151.0,0.0002,2]
[336427519,1724821859618,-196.222638,0.0002,2]
[336427521,1724821859627,-196.222638,0.0002,2]
[336427523,1724821859638,-151.0,0.0002,2]
[336427525,1724821859650,-151.0,0.0002,2]
[336427527,1724821859661,-151.0,0.0002,2]
[336427529,1724821859671,-171.473781,0.0002,2]
[336427532,1724821859681,-261.900795,0.0002,2]
[336427534,1724821859691,-261.900795,0.0002,2]
[336427536,1724821859704,-152.977133,0.0002,2]
[336427538,1724821859716,-151.0,0.0002,2]
[336427541,1724821859729,-151.0,0.0002,2]
[336427543,1724821859738,-566.892905,0.0002,2]
[336427545,1724821859748,-566.892905,0.0002,2]
[336427547,1724821859757,-476.942138,0.0002,2]
[336427549,1724821859767,-151.0,0.0002,2]
[336427551,1724821859778,-476.942138,0.0002,2]
[336427553,1724821859787,-151.0,0.0002,2]
[336427555,1724821859798,-151.0,0.0002,2]
[336427557,1724821859808,-151.0,0.0002,2]
[336427559,1724821859819,-618.632193,0.0002,2]
[336427562,1724821859831,-618.632193,0.0002,2]
[336427586,1724821860047,-255.947324,0.0002,2]
[336427589,1724821860071,-833.492058,0.0002,2]
[336427591,1724821860085,-255.947324,0.0002,2]
[336427593,1724821860094,-833.492058,0.0002,2]
[336427595,1724821860104,-516.079451,0.0002,2]
[336427597,1724821860113,-516.079451,0.0002,2]
[336427599,1724821860123,-282.044946,0.0002,2]
[336427601,1724821860132,-298.421921,0.0002,2]
[336427603,1724821860142,-282.044946,0.0002,2]
[336427605,1724821860151,-367.782899,0.0002,2]
[336427607,1724821860161,-367.782899,0.0002,2]
[336427609,1724821860170,-151.06196562,0.0002,2]
[336427610,1724821860180,-151.0,0.0002,2]
[336427611,1724821860191,-679.916543,0.0002,2]
[336427612,1724821860201,-151.0,0.0002,2]
[336427613,1724821860210,-151.0,0.0002,2]
[336427614,1724821860220,-151.0,0.0002,2]
[336427615,1724821860229,-151.0,0.0002,2]
[336427616,1724821860239,-151.0,0.0002,2]
[336427617,1724821860248,-429.717315,0.0002,2]
[336427618,1724821860257,-228.006731,0.0002,2]
[336427619,1724821860267,-429.717315,0.0002,2]
[336427621,1724821860277,-228.006731,0.0002,2]
[336427623,1724821860287,-151.0,0.0002,2]
[336427625,1724821860297,-151.0,0.0002,2]
[336427627,1724821860307,-151.0,0.0002,2]
[336427629,1724821860318,-496.141938,0.0002,2]
[336427631,1724821860328,-151.0,0.0002,2]
[336427633,1724821860338,-496.141938,0.0002,2]
[336427635,1724821860348,-151.0,0.0002,2]
[336427637,1724821860358,-966.352648,0.0002,2]
[336427639,1724821860367,-150.0,0.0002,2]
[336427641,1724821860377,-966.352648,0.0002,2]
[336427643,1724821860387,-726.647639,0.0002,2]
[336427645,1724821860397,-726.647639,0.0002,2]
[336427647,1724821860407,-726.647639,0.0002,2]
[336427650,1724821860416,-726.647639,0.0002,2]
[336427652,1724821860426,-477.05673,0.0002,2]
[336427654,1724821860435,-477.05673,0.0002,2]
[336427656,1724821860445,-479.219014,0.0002,2]
[336427658,1724821860457,-479.219014,0.0002,2]
[336427660,1724821860468,-566.258731,0.0002,2]
[336427662,1724821860477,-566.258731,0.0002,2]
[336427663,1724821860487,-3909.293576,0.0002,2]
[336427665,1724821860498,-3909.293576,0.0002,2]
[336427668,1724821860509,-151.0,0.0002,2]
[336427670,1724821860519,-1000.0,0.0002,2]
[336427672,1724821860530,-184.985166,0.0002,2]
[336427674,1724821860539,-184.985166,0.0002,2]
[336427676,1724821860548,-1000.0,0.00020004,2]
[336427678,1724821860558,-1900.0,0.00020022,2]
[336427680,1724821860568,-500.0,0.00020166,2]
[336427682,1724821860580,-1000.0,0.00020235,2]
[336427684,1724821860593,-500.0,0.00020256,2]
[336427686,1724821860602,-1000.0,0.00020313,2]
[336427688,1724821860612,-143670.10453598,0.00020377,2]
[336427690,1724821860624,-3142.89546402,0.00020377,2]
[336427692,1724821860634,-151.0,0.00020377,2]
[336427694,1724821860643,-151.0,0.00020377,2]
[336427696,1724821860653,-196.222638,0.00020377,2]
[336427699,1724821860663,-196.222638,0.00020377,2]
[336427700,1724821860672,-151.0,0.00020377,2]
[336427702,1724821860682,-206.519982,0.00020377,2]
[336427705,1724821860692,-151.0,0.00020377,2]
[336427706,1724821860702,-679.916543,0.00020377,2]
[336427708,1724821860711,-151.0,0.00020377,2]
[336427710,1724821860721,-429.717315,0.00020377,2]
[336427713,1724821860731,-228.006731,0.00020377,2]
[336427715,1724821860741,-429.717315,0.00020377,2]
[336427717,1724821860752,-228.006731,0.00020377,2]
[336427719,1724821860762,-151.0,0.00020377,2]
[336427721,1724821860772,-966.352648,0.00020377,2]
[336427723,1724821860783,-966.352648,0.00020377,2]
[336427725,1724821860792,-477.05673,0.00020377,2]
[336427727,1724821860802,-477.05673,0.00020377,2]
[336427729,1724821860811,-479.219014,0.00020377,2]
[336427731,1724821860821,-479.219014,0.00020377,2]
[336427733,1724821860831,-3909.293576,0.00020377,2]
[336427735,1724821860841,-3909.293576,0.00020377,2]
[336427737,1724821860851,-151.0,0.00020377,2]
[336427739,1724821860861,-184.985166,0.00020377,2]
[336427741,1724821860871,-184.985166,0.00020377,2]
[336427743,1724821860882,-1000.0,0.0002042,2]
[336427745,1724821860892,-500.0,0.00020435,2]
[336427747,1724821860902,-201.69101764,0.00020495,2]
[336427749,1724821860914,-500.0,0.0002053,2]
[336427752,1724821860925,-1146.880754,0.00020548,2]
[336427754,1724821860934,-5389.13003497,0.00020551,15]
[336427756,1724821860944,-1900.0,0.00020566,2]
[336427758,1724821860955,-2300.0,0.00020573,2]
[336427760,1724821860965,-4258.81050983,0.0002066,7]
[336427762,1724821860974,-151.0,0.0002066,2]
[336427764,1724821860985,-151.0,0.00020691,2]
[336427766,1724821860995,-750.0,0.00020707,2]
[336427768,1724821861005,-151.0,0.000208,2]
[336427770,1724821861016,-151.0,0.000208,2]
[336427772,1724821861027,-500.0,0.00020804,2]
[336427774,1724821861037,-150.0,0.0002087,2]
[336427777,1724821861048,-522.0,0.0002087,2]
[336427779,1724821861057,-2928.27,0.000209,2]
[336427781,1724821861067,-2126.69,0.000209,2]
[336427783,1724821861077,-299.902569,0.000209,2]
[336427785,1724821861086,-299.902569,0.000209,2]
[336427787,1724821861098,-1900.0,0.00020924,2]
[336427789,1724821861107,-465.00013467,0.0002098,2]
[336427791,1724821861117,-151.0,0.00020983,2]
[336427793,1724821861127,-151.0,0.00020983,2]
[336427795,1724821861137,-151.0,0.00020983,2]
[336427797,1724821861146,-500.0,0.00020995,2]
[336427799,1724821861155,-151.0,0.00020999,2]
[336427801,1724821861165,-151.0,0.00020999,2]
[336427803,1724821861175,-258.63578161,0.00021,2]
[336427805,1724821861184,-10151.4196312,0.00021,2]
[336427807,1724821861193,-233.0804322,0.00021,2]
[336427809,1724821861205,-200.0,0.00021,7]
[336427811,1724821861214,-2327.22349628,0.00021,5]
[336427824,1724821861321,-500.0,0.00010958,2]
[336427825,1724821861331,-1782.92421799,0.00021,5]
[336427855,1724821861599,-500.0,0.00010958,2]
[336427857,1724821861608,-500.0,0.0001123,2]
[336427859,1724821861619,-500.0,0.00011231,2]
[336427861,1724821861630,-500.0,0.0001315,2]
[336427863,1724821861639,-2832.93,0.00013424,2]
[336427865,1724821861650,-605.56578224,0.00013424,2]
[336427867,1724821861661,-2832.93,0.00013698,2]
[336427870,1724821861671,-2832.93,0.00013972,2]
[336427872,1724821861684,-2832.93,0.00014246,2]
[336427874,1724821861693,-2832.93,0.0001452,2]
[336427876,1724821861703,-2832.93,0.00014794,2]
[336427878,1724821861713,-2832.93,0.00015068,2]
[336427880,1724821861723,-2832.93,0.00015342,2]
[336427882,1724821861733,-2832.93,0.00015616,2]
[336427884,1724821861744,-2832.93,0.0001589,2]
[336427886,1724821861755,-409.3878908,0.00018148,2]
[336427888,1724821861765,-153.0,0.00019001,2]
[336427891,1724821861776,-5889.85228573,0.00021,5]